fUSD/lending_fUSD_20251123
["ID","MTS","AMOUNT","RATE_DAILY","PERIOD"]
[394688404,1763889042451,-1000.0,0.000207,2]
[394688405,1763889042460,-1000.0,0.00020795,2]
[394688406,1763889042470,-173.63,0.00020809,2]
[394688407,1763889042480,-350.0,0.00021,2]
[394688408,1763889042490,-2235.1000963,0.00021012,2]
[394688409,1763889042500,-1389.577163,0.00021012,2]
[394688410,1763889042510,-10376.4940321,0.00021018,2]
[394688412,1763889042520,-151.0,0.00021018,2]
[394688413,1763889042530,-151.0,0.00021018,2]
[394688414,1763889042540,-151.0,0.00021018,2]
[394688416,1763889042550,-157.949319,0.00021018,2]
[394688418,1763889042559,-157.949319,0.00021018,2]
[394688419,1763889042568,-157.949319,0.00021018,2]
[394688420,1763889042577,-157.949319,0.00021018,2]
[394688421,1763889042587,-151.0,0.00021018,2]
[394688422,1763889042596,-186.527697,0.00021018,2]
[394688423,1763889042606,-208.416667,0.00021018,2]
[394688424,1763889042615,-151.0,0.00021018,2]
[394688425,1763889042624,-289.114144,0.00021018,2]
[394688426,1763889042634,-151.0,0.00021018,2]
[394688427,1763889042645,-182.05,0.00021105,2]
[394688428,1763889042656,-166.91245658,0.00021157,2]
[394688429,1763889042666,-151.0,0.0002117,2]
[394688430,1763889042676,-151.0,0.0002117,2]
[394688431,1763889042686,-151.0,0.00021733,2]
[394688432,1763889042696,-151.0,0.00021733,2]
[394688433,1763889042706,-690.2928383,0.00021733,2]
[394688434,1763889042716,-1624.9625879,0.00021733,2]
[394688435,1763889042728,-1380.5856766,0.00021733,2]
[394688436,1763889042737,-3348.10916388,0.00021739,2]
[394688437,1763889042750,-229.15675722,0.00021739,2]
[394688438,1763889042760,-500.0,0.00021917,2]
[394688439,1763889042769,-34.30084052,0.00021917,2]
[394688440,1763889042794,-396.71618048,0.00021917,2]
[394688441,1763889042805,-68.982979,0.00021917,2]
[394688442,1763889042814,-500.0,0.00021917,2]
[394688443,1763889042823,-5000.0,0.00021918,2]
[394688444,1763889042832,-508.97762096,0.00022371,2]
[394688445,1763889042843,-491.02237904,0.00022371,2]
[394688446,1763889042852,-538.88,0.00022458,2]
[394688447,1763889042861,-154.0251515,0.00022575,2]
[394688448,1763889042871,-362.5781624,0.00022575,2]
[394688449,1763889042882,-308.0503031,0.00022575,2]
[394688450,1763889042891,-798.1959178,0.00022581,2]
[394688451,1763889042900,-166.66,0.0002265,2]
[394688452,1763889042909,-1717.40083147,0.00022762,2]
[394688453,1763889042920,-731.39609495,0.00022762,2]
[394688456,1763889043821,-175.26184035,0.0001575,2]
[394688457,1763889043830,-664.08853,0.00018461,2]
[394688458,1763889043839,-469.31783555,0.00020461,2]
[394688459,1763889043849,-194.77070445,0.00020461,2]
[394688460,1763889043858,-664.08854,0.00022461,2]
[394688461,1763889043867,-1112.38820913,0.00022762,2]
[394688462,1763889043876,-531.87254642,0.00023368,2]
[394688463,1763889044055,-1182.47375131,0.00023368,2]
[394688464,1763889044108,-214.39618843,0.00023368,2]
[394688465,1763889044118,-1026.94370227,0.00023368,2]
[394688466,1763889044127,-500.0,0.00023725,2]
[394688467,1763889044138,-500.0,0.00023725,2]
[394688468,1763889044148,-17663.51427056,0.00023726,2]
[394688469,1763889044157,-1607.0,0.000241,2]
[394688470,1763889044167,-1000.0,0.000241,2]
[394688471,1763889044176,-2000.0,0.000244,2]
[394688472,1763889044186,-1000.0,0.00024404,2]
[394688473,1763889044195,-166.91245658,0.00024447,2]
[394688474,1763889044205,-664.08854,0.00024461,2]
[394688475,1763889044215,-538.88,0.00024499,2]
[394688476,1763889044225,-1000.0,0.00024658,2]
[394688477,1763889044235,-160.0,0.000248,4]
[394688478,1763889044244,-160.0,0.000248,4]
[394688479,1763889044253,-7125.26726509,0.000248,2]
[394688480,1763889044262,-173.63,0.00024971,2]
[394688482,1763889044271,-153.23453523,0.00025106,2]
[394688483,1763889044281,-157.81,0.00025171,30]
[394688484,1763889044291,-3561.18513555,0.00025211,2]
[394688485,1763889044300,-2586.0,0.00025614,2]
[394688486,1763889044310,-837.58164078,0.000257,2]
[394688487,1763889044319,-837.58164078,0.000257,2]
[394688488,1763889044329,-153.23453523,0.00026247,2]
[394688489,1763889044338,-664.08854,0.00026461,2]
[394688490,1763889044348,-514.36,0.00026676,2]
[394688491,1763889044358,-150.0,0.00026975,2]
[394688492,1763889044367,-150.0,0.00026975,2]
[394688493,1763889044377,-150.0,0.00026975,2]
[394688494,1763889044386,-150.0,0.00026975,2]
[394688495,1763889044395,-150.0,0.00026975,2]
[394688496,1763889044404,-1000.0,0.00027271,2]
[394688497,1763889044413,-151.0,0.00027368,7]
[394688498,1763889044423,-25000.0,0.00027371,7]
[394688499,1763889044433,-151.0,0.00027371,7]
[394688500,1763889044442,-151.0,0.00027371,7]
[394688501,1763889044451,-157.949319,0.00027371,7]
[394688502,1763889044461,-157.949319,0.00027371,7]
[394688503,1763889044471,-157.949319,0.00027371,7]
[394688504,1763889044480,-157.949319,0.00027371,7]
[394688505,1763889044489,-151.0,0.00027378,7]
[394688506,1763889044498,-202.180204,0.00027378,7]
[394688507,1763889044507,-25000.0,0.00027379,7]
[394688508,1763889044516,-151.0,0.00027388,7]
[394688509,1763889044525,-151.0,0.00027388,7]
[394688510,1763889044534,-153.23453523,0.00027388,2]
[394688511,1763889044544,-25000.0,0.00027388,7]
[394688512,1763889044553,-10462.95470295,0.00027397,7]
[394688516,1763889045862,-151.0,0.00027388,2]
[394688517,1763889045872,-151.0,0.00027388,2]
[394688518,1763889045882,-0.51228284,0.00027397,7]
[394688519,1763889045918,-303.8,0.00027397,7]
[394688520,1763889046076,-256.06,0.00027397,7]
[394688521,1763889046088,-1115.8401823,0.00027397,7]
[394688555,1763889839926,437.2,0.00013699,2]
[394688582,1763890231937,-352.01033527,0.0001588,2]
[394688584,1763890231952,-1373.17428267,0.000162,5]
[394688585,1763890231987,-1650.0,0.000162,5]
[394688586,1763890232011,-382.35999,0.000162,5]
[394688587,1763890232105,-1594.4736441,0.000162,5]
[394688588,1763890232121,-368.02939047,0.00016612,2]
[394688589,1763890232136,-161.21,0.00016712,2]
[394688590,1763890232152,-300.0,0.00016712,2]
[394688593,1763890232169,-192.11,0.00016712,2]
[394688596,1763890232184,-221.0,0.00016899,2]
[394688598,1763890232199,-371.29879723,0.000169,2]
[394688601,1763890232217,-16845.80232662,0.000169,2]
[394688611,1763890237921,-10063.6993161,0.000169,2]
[394688612,1763890237931,-500.0,0.00016973,2]
[394688613,1763890237940,-381.66211664,0.00016973,2]
[394688708,1763890239917,-118.33788336,0.00016973,2]
[394688709,1763890239928,-500.0,0.00016973,2]
[394688710,1763890239937,-500.0,0.00016973,2]
[394688711,1763890239946,-500.22812309,0.00016973,2]
[394688712,1763890239956,-508.28181366,0.00016973,2]
[394688713,1763890239965,-500.49742426,0.00016973,2]
[394688714,1763890239974,-180.36726171,0.0001699,2]
[394688715,1763890239983,-451.02796362,0.00016998,2]
[394688716,1763890239996,-98.97203638,0.00016998,2]
[394688717,1763890240006,-172.87050175,0.00016999,2]
[394688718,1763890240015,-500.0,0.00016999,2]
[394688719,1763890240024,-165.22629121,0.00016999,2]
[394688720,1763890240034,-443.66105301,0.00016999,2]
[394688721,1763890240044,-500.0,0.00016999,2]
[394688722,1763890240054,-500.0,0.00016999,2]
[394688723,1763890240063,-501.00884214,0.00016999,2]
[394688724,1763890240073,-500.0,0.00016999,2]
[394688725,1763890240082,-448.24227136,0.00016999,2]
[394688726,1763890240094,-51.75772864,0.00016999,2]
[394688727,1763890240105,-500.0,0.00016999,2]
[394688728,1763890240114,-500.0,0.00016999,2]
[394688729,1763890240124,-196.55943663,0.00016999,2]
[394688730,1763890240133,-500.0,0.00016999,2]
[394688731,1763890240142,-500.0,0.00016999,2]
[394688732,1763890240151,-500.0,0.00016999,2]
[394688733,1763890240160,-500.0,0.00016999,2]
[394688734,1763890240169,-500.0,0.00016999,2]
[394688735,1763890240179,-500.0,0.00016999,2]
[394688736,1763890240187,-500.0,0.00016999,2]
[394688737,1763890240196,-500.0,0.00016999,2]
[394688738,1763890240206,-500.0,0.00016999,2]
[394688739,1763890240215,-500.0,0.00016999,2]
[394688740,1763890240224,-500.0,0.00016999,2]
[394688741,1763890240234,-500.0,0.00016999,2]
[394688742,1763890240243,-500.0,0.00016999,2]
[394688743,1763890240253,-500.0,0.00016999,2]
[394688744,1763890240262,-500.0,0.00016999,2]
[394688745,1763890240271,-500.0,0.00016999,2]
[394688746,1763890240280,-500.0,0.00016999,2]
[394688747,1763890240289,-500.0,0.00016999,2]
[394688748,1763890240298,-374.1253046,0.00016999,2]
[394688749,1763890240313,-125.8746954,0.00016999,2]
[394688750,1763890240322,-500.0,0.00016999,2]
[394688751,1763890240332,-500.0,0.00016999,2]
[394688752,1763890240342,-500.0,0.00016999,2]
[394688753,1763890240351,-500.0,0.00016999,2]
[394688754,1763890240360,-500.0,0.00016999,2]
[394688755,1763890240369,-500.0,0.00016999,2]
[394688757,1763890240378,-500.0,0.00016999,2]
[394688759,1763890240388,-500.0,0.00016999,2]
[394688761,1763890240397,-609.20861813,0.00016999,2]
[394688763,1763890240406,-500.0,0.00016999,2]
[394688765,1763890240415,-500.0,0.00016999,2]
[394688767,1763890240424,-500.0,0.00016999,2]
[394688769,1763890240434,-300.0,0.00016999,2]
[394688771,1763890240443,-250.0,0.00017,2]
[394688773,1763890240452,-11839.65052973,0.00017,2]
[394688775,1763890240465,-864.0,0.00017,2]
[394688779,1763890240490,-922.18333418,0.00017,2]
[394688781,1763890240501,-420.86114321,0.00017,2]
[394688796,1763890240632,-1126.8250075,0.00017,2]
[394688798,1763890240644,-421426.04957718,0.00017,2]
[394688808,1763890240730,-772.25867176,0.00017,2]
[394688917,1763890244397,-393.39206397,0.00017,2]
[394688918,1763890244455,-1789.91068394,0.00017,2]
[394688919,1763890244937,-261.98000005,0.00017,2]
[394688920,1763890244948,-688.7483796,0.00017,2]
[394688921,1763890246085,-379.12940536,0.00017,2]
[394688922,1763890246096,-657.92929977,0.00017,2]
[394688923,1763890246364,-612.84989598,0.00017,2]
[394688924,1763890246375,-327.410967,0.00017,2]
[394688943,1763891432108,-150.0,0.00015288,2]
[394688945,1763891432119,-150.0,0.00015288,2]
[394688947,1763891432128,-150.0,0.00015288,2]
[394688949,1763891432138,-150.0,0.00015288,2]
[394688951,1763891432147,-150.0,0.00015288,2]
[394688953,1763891432156,-150.0,0.00015288,2]
[394688954,1763891432167,-5700.83596755,0.00016438,2]
[394688955,1763891432414,-290.2293,0.00016438,2]
[394688956,1763891432428,-214.39473245,0.00016438,2]
[394688957,1763891432440,-150.0,0.00016662,2]
[394688958,1763891432450,-166.66,0.00016709,2]
[394688959,1763891432462,-250.93221092,0.00016816,2]
[394688960,1763891432474,-49.06778908,0.00016816,2]
[394688961,1763891432483,-300.0,0.00016816,2]
[394688962,1763891432493,-300.0,0.00016816,2]
[394688963,1763891432502,-300.0,0.00016816,2]
[394688964,1763891432511,-300.0,0.00016816,2]
[394688965,1763891432521,-1374.34204077,0.00016873,2]
[394688966,1763891432533,-2678.93702348,0.00016873,2]
[394688967,1763891432543,-842.42254417,0.00016899,2]
[394688968,1763891432552,-201.50079601,0.00016899,2]
[394688969,1763891432562,-500.0,0.00016899,2]
[394688970,1763891432573,-171.35956994,0.00016899,2]
[394688971,1763891432582,-273.9414035,0.00016899,2]
[394688972,1763891432592,-500.0,0.00016899,2]
[394688973,1763891432601,-359.9928429,0.00016899,2]
[394688974,1763891432619,-140.0071571,0.00016899,2]
[394688975,1763891432629,-500.0,0.00016899,2]
[394688976,1763891432638,-142.53589777,0.00016899,2]
[394688977,1763891432649,-250.5,0.00016899,2]
[394688978,1763891432666,-106.96410223,0.00016899,2]
[394688979,1763891432676,-177.65160887,0.00016899,2]
[394688980,1763891432685,-500.0,0.00016899,2]
[394688981,1763891432695,-500.0,0.00016899,2]
[394688982,1763891432704,-500.0,0.00016899,2]
[394688983,1763891432713,-500.0,0.00016899,2]
[394688984,1763891432722,-500.0,0.00016899,2]
[394688985,1763891432731,-500.0,0.00016899,2]
[394688986,1763891432741,-500.0,0.00016899,2]
[394688987,1763891432750,-500.0,0.00016899,2]
[394688988,1763891432759,-500.0,0.00016899,2]
[394688989,1763891432769,-500.0,0.00016899,2]
[394688990,1763891432778,-500.0,0.00016899,2]
[394688991,1763891432787,-270.88194684,0.00016899,2]
[394688992,1763891432797,-69520.39004854,0.000169,2]
[394688993,1763891432810,-1231.20141571,0.000169,2]
[394689050,1763891438622,-590.40540186,0.000169,2]
[394689052,1763891438635,-419.075,0.000169,2]
[394689055,1763891438649,-1000.0,0.000169,2]
[394689057,1763891438673,-4469.34245051,0.000169,2]
[394689058,1763891438686,-2473.65091241,0.000169,2]
[394689059,1763891438711,-2802.14483546,0.000169,2]
[394689060,1763891438722,-959.31244807,0.000169,2]
[394689066,1763891440234,-1728.71965684,0.000169,2]
[394689067,1763891440245,-139971.8734306,0.000169,2]
[394689068,1763891440254,-2500.0,0.000169,2]
[394689069,1763891440264,-635.99742792,0.000169,2]
[394689070,1763891440274,-176.14935132,0.000169,2]
[394689071,1763891440284,-162.78971239,0.000169,2]
[394689072,1763891440294,-189.22524209,0.000169,2]
[394689073,1763891440304,-150.71937,0.00016973,2]
[394689074,1763891440313,-500.0,0.00016973,2]
[394689075,1763891440323,-500.0,0.00016973,2]
[394689076,1763891440333,-500.0,0.00016973,2]
[394689077,1763891440343,-339.0289462,0.00016973,2]
[394689078,1763891440352,-500.0,0.00016973,2]
[394689079,1763891440361,-503.77862628,0.00016973,2]
[394689080,1763891440371,-955.57344451,0.00016983,2]
[394689081,1763891440382,-150.0,0.00016986,2]
[394689082,1763891440392,-150.0,0.00016986,2]
[394689083,1763891440402,-209.77070511,0.0001699,2]
[394689084,1763891440411,-207.23322525,0.0001699,2]
[394689085,1763891440421,-151.0,0.0001699,2]
[394689086,1763891440432,-151.0,0.0001699,2]
[394689087,1763891440441,-151.0,0.0001699,2]
[394689088,1763891440599,-151.0,0.0001699,2]
[394689089,1763891440610,-151.0,0.0001699,2]
[394689090,1763891440619,-151.0,0.0001699,2]
[394689091,1763891440630,-151.0,0.0001699,2]
[394689092,1763891440640,-151.0,0.0001699,2]
[394689093,1763891440651,-151.0,0.0001699,2]
[394689094,1763891440661,-151.0,0.0001699,2]
[394689095,1763891440670,-151.0,0.0001699,2]
[394689096,1763891440681,-151.0,0.0001699,2]
[394689097,1763891440690,-151.0,0.0001699,2]
[394689098,1763891440699,-151.0,0.0001699,2]
[394689099,1763891440708,-151.0,0.0001699,2]
[394689100,1763891440717,-151.0,0.0001699,2]
[394689101,1763891440728,-151.0,0.0001699,2]
[394689102,1763891440737,-151.0,0.0001699,2]
[394689103,1763891440746,-500.0,0.0001699,2]
[394689104,1763891440755,-227.28168012,0.0001699,2]
[394689105,1763891440763,-442.71974365,0.0001699,2]
[394689106,1763891440772,-216.47457271,0.0001699,2]
[394689107,1763891440781,-180.36726172,0.0001699,2]
[394689108,1763891440791,-812.15,0.00016999,2]
[394689109,1763891440799,-167.141,0.00016999,2]
[394689110,1763891440809,-150.0,0.00016999,2]
[394689111,1763891440820,-273.847373,0.00016999,2]
[394689112,1763891440830,-150.0,0.00016999,2]
[394689113,1763891440839,-150.0,0.00016999,2]
[394689114,1763891440848,-150.0,0.00016999,2]
[394689115,1763891440858,-150.0,0.00016999,2]
[394689116,1763891440867,-428.36785,0.00016999,2]
[394689117,1763891440876,-500.0,0.00016999,2]
[394689118,1763891440885,-162.64799752,0.00016999,2]
[394689119,1763891440894,-500.0,0.00016999,2]
[394689120,1763891440903,-150.0,0.00016999,2]
[394689121,1763891440913,-500.0,0.00016999,2]
[394689122,1763891440922,-150.0,0.00016999,2]
[394689123,1763891440931,-150.0,0.00016999,2]
[394689124,1763891440940,-150.0,0.00016999,2]
[394689125,1763891440949,-150.0,0.00016999,2]
[394689126,1763891440958,-222.69244304,0.00016999,2]
[394689127,1763891440968,-150.0,0.00016999,2]
[394689128,1763891440977,-150.0,0.00016999,2]
[394689129,1763891440987,-150.0,0.00016999,2]
[394689130,1763891440995,-150.0,0.00016999,2]
[394689131,1763891441005,-150.0,0.00016999,2]
[394689132,1763891441014,-500.0,0.00016999,2]
[394689133,1763891441024,-500.0,0.00016999,2]
[394689134,1763891441033,-500.0,0.00016999,2]
[394689135,1763891441042,-500.0,0.00016999,2]
[394689136,1763891441052,-500.0,0.00016999,2]
[394689137,1763891441061,-218.05,0.00016999,2]
[394689138,1763891441071,-260304.17017375,0.00017,2]
[394689139,1763891441105,-838.48,0.00017,2]
[394689140,1763891441141,-1342.59850937,0.00017,2]
[394689149,1763891443926,-1770.4504776,0.00017,2]
[394689150,1763891444034,-619.94646908,0.00017,2]
[394689151,1763891444046,-1041.0,0.00017,2]
[394689164,1763891446402,-53045.11791045,0.00017,2]
[394689165,1763891446623,-1180.00000001,0.00017,2]
[394689196,1763891562865,157.81,0.00019178,30]
[394689213,1763891986793,300.0,0.00016,14]
[394689214,1763892163529,1000.0,0.000144,2]
[394689225,1763892590121,-355.67909636,0.0001616,2]
[394689226,1763892590142,-2076.68,0.0001626,2]
[394689227,1763892590166,-200.0,0.0001626,2]
[394689228,1763892590189,-200.0,0.00016266,2]
[394689229,1763892590214,-195.0,0.0001639,2]
[394689230,1763892590238,-355.67909634,0.0001643,2]
[394689231,1763892590263,-301.0,0.00016526,2]
[394689232,1763892590288,-393.33,0.00016526,2]
[394689233,1763892590312,-1000.0,0.00016607,2]
[394689234,1763892590335,-901.71,0.0001662,2]
[394689235,1763892590359,-1200.0,0.00016655,2]
[394689236,1763892590384,-410.00915188,0.00016691,2]
[394689237,1763892590406,-355.67909634,0.000167,2]
[394689238,1763892590431,-467.13355908,0.000167,2]
[394689239,1763892610685,441.06,0.00013699,2]
[394689245,1763892631539,-300.0,0.00016699,2]
[394689246,1763892631551,-1200.0,0.00016699,2]
[394689247,1763892631561,-305.0,0.00016699,2]
[394689248,1763892631571,-72335.1308401,0.000167,2]
[394689249,1763892631583,-4844.00840082,0.000167,2]
[394689250,1763892631592,-774.75,0.00016792,2]
[394689251,1763892631601,-151.0,0.00016797,2]
[394689252,1763892631611,-649.72,0.00016799,2]
[394689253,1763892631620,-5429.5212,0.000168,2]
[394689254,1763892631630,-166.67,0.00016892,2]
[394689255,1763892631639,-716.4746,0.000169,2]
[394689256,1763892631648,-2500.0,0.000169,2]
[394689257,1763892631658,-545.14065252,0.000169,2]
[394689258,1763892631667,-176.14935132,0.000169,2]
[394689259,1763892631677,-155.49,0.00016903,2]
[394689260,1763892631687,-173.0,0.00016945,2]
[394689261,1763892631697,-152.0,0.00016967,2]
[394689262,1763892631706,-330.8232162,0.00016973,2]
[394689263,1763892631719,-169.1767838,0.00016973,2]
[394689264,1763892631728,-500.0,0.00016973,2]
[394689266,1763892631737,-132.80584636,0.0001699,2]
[394689269,1763892631756,-31.06415364,0.0001699,2]
[394689270,1763892631765,-151.0,0.00016997,2]
[394689271,1763892631775,-500.0,0.00016999,2]
[394689272,1763892631784,-438.4759563,0.00016999,2]
[394689274,1763892631795,-286.07939805,0.00016999,2]
[394689276,1763892631804,-500.0,0.00016999,2]
[394689278,1763892631813,-368.92,0.00016999,2]
[394689280,1763892631823,-395.82824615,0.00016999,2]
[394689282,1763892631833,-4485.83230086,0.00017,2]
[394689283,1763892631844,-1538.8427499,0.00017,2]
[394689284,1763892631981,-500.0,0.00017,2]
[394689285,1763892632000,-875.88927357,0.00017,2]
[394689286,1763892632012,-3048.05906453,0.00017,2]
[394689287,1763892632023,-1051.0,0.00017,2]
[394689288,1763892632042,-1148.80393182,0.00017,2]
[394689289,1763892632054,-2469.67898055,0.00017,2]
[394689290,1763892637382,-2168.78269289,0.00017,2]
[394689291,1763892637642,-1050.14187519,0.00017,2]
[394689296,1763892639470,-4846.9158966,0.00017,2]
[394689297,1763892639481,-7425.9288,0.00017,2]
[394689298,1763892639492,-22266.57001681,0.00017,2]
[394689299,1763892639731,-16819.91961951,0.00017,2]
[394689300,1763892643056,-5662.64111362,0.000169,2]
[394689301,1763892643066,-68979.98897737,0.00017,2]
[394689344,1763892646137,-4073.78833296,0.00017,2]
[394689345,1763892646245,-1360.56277801,0.00017,2]
[394689346,1763892646259,-466.81370507,0.00017,2]
[394689348,1763892816919,151.00000057,0.00022,30]
[394689349,1763892886937,302.0,0.00022,30]
[394689350,1763893051467,852.37428701,0.00022,30]
[394689403,1763893831631,-166.66,0.00015371,2]
[394689405,1763893831643,-250.0,0.00015533,2]
[394689406,1763893831652,-166.66,0.00015695,2]
[394689407,1763893831663,-288.66025582,0.00015863,2]
[394689408,1763893831674,-653.35672614,0.00015863,2]
[394689409,1763893831689,-1808.98301804,0.00015863,2]
[394689410,1763893831699,-1352.96,0.0001591,2]
[394689411,1763893831708,-166.66,0.00016018,2]
[394689412,1763893831718,-1200.0,0.00016179,2]
[394689413,1763893831727,-3103.09679196,0.0001618,2]
[394689414,1763893831793,-660.50667654,0.0001618,2]
[394689415,1763893831803,-166.66,0.00016342,2]
[394689416,1763893831812,-305.65481374,0.000164,2]
[394689417,1763893831821,-300.0,0.00016434,2]
[394689418,1763893831831,-300.0,0.00016434,2]
[394689419,1763893831841,-1200.0,0.00016436,2]
[394689420,1763893831851,-1565.49835337,0.00016438,2]
[394689441,1763893837644,-1371.28294628,0.00016438,2]
[394689442,1763893837654,-2525.00870035,0.00016438,2]
[394689443,1763893837664,-176.03673408,0.00016438,2]
[394689444,1763893837677,-7179.73,0.00016484,2]
[394689445,1763893837687,-550.0,0.00016499,2]
[394689446,1763893837697,-235.0453,0.000165,2]
[394689447,1763893837708,-4238.87965827,0.000165,2]
[394689448,1763893837751,-2169.18029496,0.000165,2]
[394689449,1763893837859,-54911.72810435,0.000165,2]
[394689453,1763893839717,-9197.00234242,0.000165,2]
[394689454,1763893839727,-166.66,0.00016666,2]
[394689455,1763893839737,-999.0,0.00016706,3]
[394689456,1763893839746,-250.0,0.00016706,2]
[394689457,1763893839754,-294.28524076,0.00016792,2]
[394689458,1763893840033,-2463.33,0.00016792,2]
[394689483,1763893843391,-1256.5732393,0.00016792,2]
[394689484,1763893845765,-376.1981432,0.00016792,2]
[394689485,1763893845775,-180.75694038,0.000168,2]
[394689486,1763893845784,-44.53225902,0.000168,2]
[394689487,1763893845819,-407.15998,0.000168,2]
[394689488,1763893845830,-271.0542,0.000168,2]
[394689489,1763893845981,-857.78653128,0.000168,2]
[394689490,1763893845992,-3515.84403194,0.000168,2]
[394689491,1763893846001,-236.57097934,0.000168,2]
[394689492,1763893846010,-151.0,0.00016882,2]
[394689493,1763893846020,-151.0,0.00016882,2]
[394689494,1763893846030,-55.33498872,0.00016882,2]
[394689495,1763893846052,-95.66501128,0.00016882,2]
[394689496,1763893846061,-151.0,0.00016882,2]
[394689497,1763893846075,-151.0,0.00016882,2]
[394689498,1763893846084,-151.0,0.00016882,2]
[394689500,1763893846093,-151.0,0.00016882,2]
[394689502,1763893846103,-151.0,0.00016882,2]
[394689504,1763893846112,-151.0,0.00016882,2]
[394689506,1763893846120,-151.0,0.00016882,2]
[394689508,1763893846130,-151.0,0.00016882,2]
[394689510,1763893846138,-151.0,0.00016882,2]
[394689512,1763893846147,-151.0,0.00016882,2]
[394689514,1763893846157,-151.0,0.00016882,2]
[394689516,1763893846166,-151.0,0.00016882,2]
[394689518,1763893846175,-259.03096989,0.00016882,2]
[394689520,1763893846185,-693.41804503,0.00016891,2]
[394689522,1763893846193,-177.65160887,0.00016891,2]
[394689524,1763893846203,-500.0,0.00016891,2]
[394689526,1763893846212,-500.0,0.00016891,2]
[394689528,1763893846221,-500.0,0.00016891,2]
[394689530,1763893846231,-500.0,0.00016891,2]
[394689532,1763893846240,-500.0,0.00016891,2]
[394689534,1763893846250,-500.0,0.00016891,2]
[394689536,1763893846259,-500.0,0.00016891,2]
[394689538,1763893846267,-500.0,0.00016891,2]
[394689540,1763893846276,-223.78198305,0.00016891,2]
[394689543,1763893846285,-500.0,0.00016891,2]
[394689545,1763893846294,-500.0,0.00016891,2]
[394689547,1763893846303,-500.0,0.00016891,2]
[394689571,1763893846510,-500.0,0.00016891,2]
[394689573,1763893846520,-500.0,0.00016891,2]
[394689575,1763893846530,-500.0,0.00016891,2]
[394689577,1763893846539,-500.0,0.00016891,2]
[394689579,1763893846548,-500.0,0.00016891,2]
[394689581,1763893846557,-500.0,0.00016891,2]
[394689583,1763893846571,-9136.5191637,0.00016892,2]
[394689585,1763893846580,-2273.21321818,0.00016892,2]
[394689598,1763894002260,670.268478,0.000149,2]
[394689599,1763894002525,667.0,0.000149,2]
[394689600,1763894002852,667.0,0.000149,2]
[394689601,1763894003091,667.0,0.000149,2]
[394689602,1763894003374,667.0,0.000149,2]
[394689604,1763894173764,157.81,0.00019178,30]
[394689605,1763894605624,200.0,0.00014781,2]
[394689742,1763895031866,-150.0,0.00015288,2]
[394689743,1763895031876,-150.0,0.00015288,2]
[394689744,1763895031885,-150.0,0.00015288,2]
[394689745,1763895031895,-195.0,0.00015564,2]
[394689746,1763895031905,-711.3581927,0.00015769,2]
[394689747,1763895031915,-150.0,0.0001581,2]
[394689748,1763895031925,-1000.0,0.0001584,2]
[394689749,1763895031936,-557.015162,0.00015869,2]
[394689750,1763895031949,-314.66,0.00015949,2]
[394689751,1763895031959,-155.49,0.00015985,2]
[394689752,1763895031969,-711.35819269,0.00016035,2]
[394689753,1763895031979,-300.0,0.000162,2]
[394689754,1763895031990,-1200.0,0.00016299,2]
[394689755,1763895032000,-300.0,0.00016299,2]
[394689756,1763895032010,-300.0,0.000163,2]